{"text_format":"3","workbook":"xlsx","n_sheets":1,"sheets":["PRICING SCHEDULE"],"not_rendered":{"images":1,"defined_names":2},"read":"whole","date_system":"1900"}

{"sheet":"PRICING SCHEDULE","index":0,"n_rows":33,"n_cols":13,"rows_kept":33,"merged":[[10,2,10,4],[10,5,10,7],[10,8,10,10],[29,1,32,1],[29,3,29,4],[31,3,31,4],[32,3,32,4]]}
[null,"SUPPLY CHAIN MANAGEMENT"]
[null,"Pricing schedule"]
["RFB No","INC:22471490"]
["RFB Title","Appointment of a Reputable and Professionally Certified Plumbing and Related Trades Service Provider for a period of three (3) years at SITA Campuses: Centurion, Erasmuskloof, Beta and Numerus."]
["Bidder Name "]
[]
["1. INSTRUCTION FOR COMPLETING THE PRICING SCHEDULE"]
["(a)  Bidder must complete/enter YELLOW cells only"]
["(b) The price must include all cost to deliver the goods or render the service, including all applicable taxes, duty fees, logistics/delivery, storage, labour, overtime and subsistence and travel"]
["( c) The bidder must indicate the percentage % mark up that will be added to any materials used or purchased - the mark up shall not be more than 10%"]
[null,null,"YEAR 1",null,null,"YEAR 2",null,null,"YEAR 3",null,null,"TOTAL"]
["Item No","Service description","Rate per hour Year 1 ","Qty per year (not guaranteed) ","Annual Price Year 1","Rate per hour Year 2","Qty per year (not guaranteed) ","Annual Price Year 2","Rate per hour Year 3","Qty per year (not guaranteed) ","Annual Price Year 3","Line Price Term \n(Excl VAT)","Price clarification comment"]
[1,"Fixed Call Out Fee Rate - normal working hours and after hours weekdays - 08h00 to 17h00",null,{"v":12,"d":"12 "},{"$f":"C13*D13","v":0},null,{"v":12,"d":"12 "},{"$f":"F13*G13","v":0},null,{"v":12,"d":"12 "},{"$f":"I13*J13","v":0},{"$f":"E13+H13+K13","v":0}]
[2,"Fixed Call Out Fee Rate - afterhours weekends and public holidays ",null,{"v":12,"d":"12 "},0,null,{"v":12,"d":"12 "},{"$f":"F14*G14","v":0},null,{"v":12,"d":"12 "},{"$f":"I14*J14","v":0},{"$f":"E14+H14+K14","v":0}]
[3,"Labour Rate -  Plumbing Supervisor  - Normal Working Hours  ",null,{"v":192,"d":"192 "},0,null,{"v":192,"d":"192 "},0,null,{"v":192,"d":"192 "},0,0]
[4,"Labour Rate - Plumbing Supervisor  - After Hours  ",null,{"v":192,"d":"192 "},0,null,{"v":192,"d":"192 "},0,null,{"v":192,"d":"192 "},0,0]
[5,"Labour Rate - Qualified Plumber/ Normal Working hours ",null,{"v":192,"d":"192 "},0,null,{"v":192,"d":"192 "},0,null,{"v":192,"d":"192 "},0,0]
[6,"Labour Rate - Qualified Plumber / After Hours ",null,{"v":192,"d":"192 "},0,null,{"v":192,"d":"192 "},0,null,{"v":192,"d":"192 "},0,0]
[7,"Labour Rate  - Plumber Assistant  / Normal Working Hours ",null,{"v":192,"d":"192 "},0,null,{"v":192,"d":"192 "},0,null,{"v":192,"d":"192 "},0,0]
[8,"Labour Rate - Plumber Assistant  / After Hours ",null,{"v":192,"d":"192 "},0,null,{"v":192,"d":"192 "},0,null,{"v":192,"d":"192 "},0,0]
[9,"Professional fees - ad hoc and special projects  - rate per hour for consulting, modernisation, rehabilitation, upgrades etc. ",null,{"v":12,"d":"12 "},0,null,{"v":12,"d":"12 "},0,null,{"v":12,"d":"12 "},0,0]
[10,"COC cost per plumbing work/installation",null,{"v":12,"d":"12 "},0,null,{"v":12,"d":"12 "},0,null,{"v":12,"d":"12 "},0,0]
[null,"TOTAL BID PRICE  (EXCL VAT)",null,null,{"$f":"SUM(E13:E22)","v":0},null,null,{"$f":"SUM(H13:H22)","v":0},null,null,{"$f":"SUM(K13:K22)","v":0},{"$f":"SUM(L13:L22)","v":0}]
[null,"VAT (@15%)",null,null,{"$f":"E23*0.15","v":0},null,null,{"$f":"H23*0.15","v":0},null,null,{"$f":"K23*0.15","v":0},{"$f":"E24+H24+K24","v":0}]
[null,"TOTAL  BID PRICE (INCL VAT)",null,null,{"$f":"E23+E24","v":0},null,null,{"$f":"H23+H24","v":0},null,null,{"$f":"K23+K24","v":0},0]
[null,null,"% Mark Up",null,null,"% Mark Up",null,null,"% Mark Up"]
[13,"Material Costs  Mark Up"]
[]
[]
[null,"I, the bidder, confirm that the price(s) and rate(s) quoted cover all the goods and/or works specified in the bidding documents; that the price(s) or rate(s) cover all my obligations and I accept that any mistakes regarding price(s), rate(s) or calculations will be at my own risk.\n[Note: First convert to PDF, then add signature]"]
[null,null,"Name","Capacity"]
[]
[null,null,"Signature (above)","Date"]